Workbook

Sheet PLOT
A1: ProperSort | B1: (All)
A3: Row Labels | B3: ME-OTC | C3: VT | D3: MA | E3: RI | F3: DE | G3: DC | H3: MD | I3: NJ | J3: NY | K3: PA | L3: OTC | M3: OTC NEAR ROAD
A4: 2015 | B4: 17.18810767 | C4: 11.1530025 | D4: 15.94215273 | E4: 25.56987476 | F4: 18.84217881 | G4: 22.48003757 | H4: 19.60185217 | I4: 25.49618686 | K4: 14.01182875 | L4: 16.87580639 | M4: 35.48763688
A5: 2016 | B5: 7.484643959 | C5: 9.358776627 | D5: 13.79855288 | E5: 22.91962901 | F5: 18.0843957 | G5: 21.93524425 | H5: 20.89812099 | I5: 24.28772041 | J5: 16.91223437 | K5: 12.0292668 | L5: 16.37410483 | M5: 29.27697176
A6: 2017 | B6: 8.171027342 | C6: 9.426806942 | D6: 12.18960005 | E6: 20.82911933 | F6: 15.84162885 | G6: 18.76137576 | H6: 17.81138356 | I6: 21.68577843 | J6: 15.76762648 | K6: 10.56490506 | L6: 14.72413824 | M6: 26.15431409
A7: 2018 | B7: 7.298350704 | C7: 9.588660641 | D7: 12.95021822 | E7: 25.87961899 | F7: 15.23794362 | G7: 18.29054228 | H7: 18.29875285 | I7: 21.32249198 | J7: 20.66444117 | K7: 9.51085828 | L7: 15.01243412 | M7: 26.1974405
A8: 2019 | B8: 6.312790299 | C8: 9.496200499 | D8: 13.1525749 | E8: 24.82281098 | F8: 15.28670921 | G8: 19.82766105 | H8: 19.07398272 | I8: 21.84181712 | J8: 20.73780441 | K8: 10.26419054 | L8: 15.03763783 | M8: 25.57023275
A9: 2020 | B9: 9.209315117 | C9: 8.136791444 | D9: 12.84210021 | E9: 22.65151302 | F9: 14.33939543 | G9: 16.62623795 | H9: 24.37260574 | I9: 20.16947927 | J9: 16.15264806 | K9: 9.884102107 | L9: 14.26075144 | M9: 22.90269997
A10: 2021 | B10: 8.305433099 | C10: 8.09890411 | D10: 11.82377126 | E10: 21.92905827 | F10: 11.5760701 | G10: 18.2997578 | H10: 26.33196213 | I10: 20.13934614 | J10: 14.78252141 | K10: 10.82383476 | L10: 14.47777487 | M10: 23.26983945
A11: Grand Total | B11: 9.126819521 | C11: 9.32290571 | D11: 13.25036416 | E11: 23.50826955 | F11: 15.64617779 | G11: 19.45926147 | H11: 20.90407491 | I11: 22.13136258 | J11: 17.49951232 | K11: 11.01266851 | L11: 15.25185814 | M11: 26.97918033
O46: 1st day | P46: last day
O47: January 1 | P47: December 31
O48: ="Average NOx 1-hr Concentrations " &TEXT(O47,"mmm d")&" - " &TEXT(P47,"mmm d")&" (2021 data are preliminary)" -> Average NOx 1-hr Concentrations Jan 1 - Dec 31 (2021 data are preliminary)
A51: Click on the CALCULATE MACRO to update the % change between years table below:
A52: CALCULATE MACRO
A54: Row Labels | B54: =IF(B63="","",B63) -> ME-OTC | C54: =IF(C63="","",C63) -> VT | D54: MA | E54: RI | F54: DE | G54: DC | H54: MD | I54: NJ | J54: NY | K54: PA | L54: OTC | M54: OTC NEAR ROAD
A55: 2021/2015-100% | B55: =IF(B70="","",IF(B64="","",B70/B64-100%)) -> -0.5167918855 | C55: =IF(C70="","",IF(C64="","",C70/C64-100%)) -> -0.2738364303 | D55: -0.2583328327 | E55: -0.1423869506 | F55: -0.3856299625 | G55: -0.1859551951 | H55: 0.3433405123 | I55: -0.2101036028 | K55: -0.2275216209 | L55: -0.1420987813 | M55: -0.3442832067 | Q55: =IF($B$70="","",IF(Q64="","",$B$70/Q64-100%)) ->  | R55: =IF($B$70="","",IF(R64="","",$B$70/R64-100%)) -> 
A56: 2021/2016-100% | B56: =IF(B70="","",IF(B65="","",B70/B65-100%)) -> 0.1096630841 | C56: =IF(C70="","",IF(C65="","",C70/C65-100%)) -> -0.1346193598 | D56: -0.1431151252 | E56: -0.0432193183 | F56: -0.3598862633 | G56: -0.1657372221 | H56: 0.2600157758 | I56: -0.170801302 | J56: -0.125927356 | K56: -0.1002082717 | L56: -0.115812741 | M56: -0.2051828432
A57: 2021/2017-100% | B57: =IF(B70="","",IF(B66="","",B70/B66-100%)) -> 0.0164490646 | C57: =IF(C70="","",IF(C66="","",C70/C66-100%)) -> -0.140864541 | D57: -0.03001155017 | E57: 0.05280775041 | F57: -0.2692626364 | G57: -0.02460469671 | H57: 0.4783782542 | I57: -0.0713108958 | J57: -0.06247643356 | K57: 0.02450847369 | L57: -0.0167319384 | M57: -0.1102867627
A58: 2021/2018-100% | B58: =IF(B70="","",IF(B67="","",B70/B67-100%)) -> 0.1379876681 | C58: =IF(C70="","",IF(C67="","",C70/C67-100%)) -> -0.1553664883 | D58: -0.08698285584 | E58: -0.1526514252 | F58: -0.2403128405 | G58: 0.0005038410002 | H58: 0.4390031028 | I58: -0.05548815959 | J58: -0.2846396721 | K58: 0.1380502625 | L58: -0.03561442778 | M58: -0.1117514151
A59: 2021/2019-100% | B59: =IF(B70="","",IF(B68="","",B70/B68-100%)) -> 0.31565167 | C59: =IF(C70="","",IF(C68="","",C70/C68-100%)) -> -0.1471426798 | D59: -0.1010299241 | E59: -0.1165763503 | F59: -0.2427362918 | G59: -0.07705917754 | H59: 0.3805172482 | I59: -0.07794548242 | J59: -0.2871703717 | K59: 0.05452395122 | L59: -0.03723077866 | M59: -0.0899637216
A60: 2021/2020-100% | B60: =IF(B70="","",IF(B69="","",B70/B69-100%)) -> -0.09814866867 | C60: =IF(C70="","",IF(C69="","",C70/C69-100%)) -> -0.004656299049 | D60: -0.07929613823 | E60: -0.03189432639 | F60: -0.1927086353 | G60: 0.1006553529 | H60: 0.08039174867 | I60: -0.001493996254 | J60: -0.08482365549 | K60: 0.0950751667 | L60: 0.01521823225 | M60: 0.016030402 | Q60: =IF($B$70="","",IF(Q69="","",$B$70/Q69-100%)) -> 
A63: Row Labels | B63: ME-OTC | C63: VT | D63: MA | E63: RI | F63: DE | G63: DC | H63: MD | I63: NJ | J63: NY | K63: PA | L63: OTC | M63: OTC NEAR ROAD
A64: 2015 | B64: 17.18810767 | C64: 11.1530025 | D64: 15.94215273 | E64: 25.56987476 | F64: 18.84217881 | G64: 22.48003757 | H64: 19.60185217 | I64: 25.49618686 | K64: 14.01182875 | L64: 16.87580639 | M64: 35.48763688
A65: 2016 | B65: 7.484643959 | C65: 9.358776627 | D65: 13.79855288 | E65: 22.91962901 | F65: 18.0843957 | G65: 21.93524425 | H65: 20.89812099 | I65: 24.28772041 | J65: 16.91223437 | K65: 12.0292668 | L65: 16.37410483 | M65: 29.27697176
A66: 2017 | B66: 8.171027342 | C66: 9.426806942 | D66: 12.18960005 | E66: 20.82911933 | F66: 15.84162885 | G66: 18.76137576 | H66: 17.81138356 | I66: 21.68577843 | J66: 15.76762648 | K66: 10.56490506 | L66: 14.72413824 | M66: 26.15431409
A67: 2018 | B67: 7.298350704 | C67: 9.588660641 | D67: 12.95021822 | E67: 25.87961899 | F67: 15.23794362 | G67: 18.29054228 | H67: 18.29875285 | I67: 21.32249198 | J67: 20.66444117 | K67: 9.51085828 | L67: 15.01243412 | M67: 26.1974405
A68: 2019 | B68: 6.312790299 | C68: 9.496200499 | D68: 13.1525749 | E68: 24.82281098 | F68: 15.28670921 | G68: 19.82766105 | H68: 19.07398272 | I68: 21.84181712 | J68: 20.73780441 | K68: 10.26419054 | L68: 15.03763783 | M68: 25.57023275
A69: 2020 | B69: 9.209315117 | C69: 8.136791444 | D69: 12.84210021 | E69: 22.65151302 | F69: 14.33939543 | G69: 16.62623795 | H69: 24.37260574 | I69: 20.16947927 | J69: 16.15264806 | K69: 9.884102107 | L69: 14.26075144 | M69: 22.90269997
A70: 2021 | B70: 8.305433099 | C70: 8.09890411 | D70: 11.82377126 | E70: 21.92905827 | F70: 11.5760701 | G70: 18.2997578 | H70: 26.33196213 | I70: 20.13934614 | J70: 14.78252141 | K70: 10.82383476 | L70: 14.47777487 | M70: 23.26983945

Sheet HOURLY

Sheet Sheet1
E1: LAST DATE
A2: Code | B2: State | C2: PARSED | D2: SEQUENTIAL | E2: 2020 AQS COMPLETE
A3: 9 | B3: Connecticut | E3: XXX
A4: 10 | B4: Delaware | E4: 2022-06-30
A5: 11 | B5: DC | E5: 2022-12-31
A6: 23 | B6: Maine | E6: 2022-12-31
A7: 24 | B7: Maryland | E7: 2022-12-31
A8: 25 | B8: Massachusetts | E8: 2022-10-31
A9: 33 | B9: New Hampshire | E9: XXX
A10: 34 | B10: New Jersey | E10: 2022-12-31
A11: 36 | B11: New York | E11: 2022-12-30
A12: 42 | B12: Pennsylvania | E12: 2022-09-30
A13: 44 | B13: Rhode Island | E13: 2022-12-12
A14: 50 | B14: Vermont | E14: 2022-12-31
A15: 51 | B15: Virginia OTC | E15: XXX
